fUSD/lending_fUSD_20260224
["ID","MTS","AMOUNT","RATE_DAILY","PERIOD"]
[406555945,1771939848792,-150.0,0.00034293,2]
[406555946,1771939848801,-206.290511,0.00034294,2]
[406555947,1771939848811,-150.0,0.00034294,120]
[406555948,1771939848821,-158.38200706,0.00034294,120]
[406555949,1771939848830,-173.628,0.00034459,2]
[406555950,1771939848840,-150.409,0.00034459,2]
[406555951,1771939848849,-150.369,0.00034459,2]
[406555952,1771939848860,-150.198,0.00034459,2]
[406555953,1771939848871,-267.735,0.00034459,2]
[406555954,1771939848880,-197.003,0.00034499,39]
[406555955,1771939848890,-2384.657,0.00034499,39]
[406555956,1771939848899,-165.44,0.000346,14]
[406555957,1771939848908,-160.83,0.000346,14]
[406555958,1771939848917,-150.0,0.00034696,2]
[406555959,1771939848926,-1500.0,0.00034795,2]
[406555960,1771939848936,-187.18350907,0.00034903,2]
[406555961,1771939848945,-164.01584354,0.00035,120]
[406555962,1771939848955,-167.15607918,0.00035,120]
[406555963,1771939848964,-702.38,0.00035,2]
[406555964,1771939848973,-270.73,0.00035,14]
[406555965,1771939848982,-200000.0,0.00035,29]
[406555966,1771939848991,-787.713897,0.00035,28]
[406555967,1771939849001,-787.713897,0.00035,28]
[406555968,1771939849010,-787.713897,0.00035,28]
[406555969,1771939849019,-787.713897,0.00035,28]
[406555970,1771939849028,-1000.0,0.00035,30]
[406555971,1771939849038,-165.12,0.000357,30]
[406555972,1771939849047,-2455.0,0.00035803,2]
[406555973,1771939849057,-152.0,0.0003612,5]
[406555974,1771939849066,-2000.0,0.000364,2]
[406555975,1771939849075,-160.83,0.000364,14]
[406555976,1771939849084,-150.0,0.0003643,2]
[406555977,1771939849094,-15438.5,0.000366,2]
[406555978,1771939849104,-566.19,0.00036651,45]
[406555979,1771939849113,-591.67,0.00036651,120]
[406555980,1771939849122,-620.42088911,0.00036651,120]
[406555981,1771939849131,-917.0,0.00036651,120]
[406555982,1771939849140,-500.0,0.00036651,120]
[406555983,1771939849149,-523.24,0.00036651,120]
[406555984,1771939849158,-858.26,0.00036651,120]
[406555985,1771939849169,-500.0,0.00036651,30]
[406555986,1771939849182,-1277.0,0.00036652,2]
[406555987,1771939849191,-920.0,0.00036652,2]
[406555988,1771939849200,-1210.0,0.00036652,2]
[406555989,1771939849210,-500.0,0.00036659,45]
[406555990,1771939849219,-165.44,0.000368,14]
[406555991,1771939849228,-160.0,0.000369,120]
[406555992,1771939849238,-161.0,0.000369,120]
[406555993,1771939849248,-162.0,0.000369,120]
[406555994,1771939849257,-303.0,0.00037,2]
[406555995,1771939849266,-434.0,0.00037,2]
[406555996,1771939849276,-309.0,0.00037,2]
[406555997,1771939849285,-431.0,0.00037,2]
[406555998,1771939849294,-181.61613088,0.000372,120]
[406555999,1771939849304,-702.38,0.000375,2]
[406556000,1771939849313,-160.83,0.000375,14]
[406556001,1771939849322,-151.0,0.0003757,3]
[406556002,1771939849331,-270.73,0.000377,14]
[406556003,1771939849341,-4561.50437003,0.00037999,120]
[406556004,1771939849351,-150.0,0.00038252,2]
[406556005,1771939849360,-165.44,0.000383,14]
[406556006,1771939849371,-155.72,0.00038356,30]
[406556007,1771939849381,-152.0,0.00038458,6]
[406556008,1771939849391,-657.39,0.00038672,2]
[406556009,1771939849400,-1423.69,0.00038672,120]
[406556010,1771939849410,-4697.42439603,0.00038685,2]
[406556011,1771939849420,-15438.5,0.000387,2]
[406556012,1771939849429,-160.0,0.00038745,120]
[406556013,1771939849438,-161.0,0.00038745,120]
[406556014,1771939849447,-162.0,0.00038745,120]
[406556015,1771939849457,-2455.0,0.00038803,2]
[406556016,1771939849466,-34852.83684039,0.00039,120]
[406556017,1771939849475,-160.83,0.00039,14]
[406556018,1771939849485,-566.19,0.00039999,45]
[406556019,1771939849494,-591.67,0.00039999,120]
[406556020,1771939849504,-917.0,0.00039999,120]
[406556021,1771939849513,-500.0,0.00039999,120]
[406556022,1771939849522,-657.39,0.00039999,2]
[406556023,1771939849531,-1423.69,0.00039999,120]
[406556024,1771939849541,-523.24,0.00039999,120]
[406556025,1771939849550,-858.26,0.00039999,120]
[406556026,1771939849559,-500.0,0.00039999,30]
[406556027,1771939849568,-10018.78232534,0.0004,10]
[406556028,1771939849578,-285977.0,0.0004,30]
[406556029,1771939849587,-154.0,0.0004,120]
[406556030,1771939849597,-160.0,0.0004,120]
[406556031,1771939849773,-173.87087054,0.0004,10]
[406556032,1771939849782,-173.87087054,0.0004,30]
[406556033,1771939849791,-1000.0,0.0004,30]
[406556034,1771939849800,-151.0,0.0004,120]
[406556035,1771939849809,-167.200014,0.0004,120]
[406556036,1771939849818,-2000.0,0.000401,2]
[406556037,1771939849827,-165.44,0.000401,14]
[406556038,1771939849836,-150.0,0.00040165,2]
[406556039,1771939849845,-6623.03809716,0.00040188,5]
[406556040,1771939849853,-702.38,0.000403,30]
[406556041,1771939849862,-210.69207547,0.000404,120]
[406556042,1771939849871,-270.73,0.000404,14]
[406556043,1771939849880,-398.25018667,0.00040538,2]
[406556044,1771939849889,-160.0,0.00040682,120]
[406556045,1771939849898,-161.0,0.00040682,120]
[406556046,1771939849907,-160.83,0.000407,14]
[406556047,1771939849916,-152.0,0.00040795,7]
[406556048,1771939849925,-46189.86317371,0.000409,7]
[406556049,1771939849934,-566.19,0.00040949,45]
[406556050,1771939849944,-566.19,0.00040949,45]
[406556051,1771939849952,-566.19,0.00040949,45]
[406556052,1771939849961,-566.19,0.00040949,45]
[406556053,1771939849970,-566.42459131,0.00040949,45]
[406556054,1771939849980,-591.67,0.00040949,120]
[406556055,1771939849989,-591.67,0.00040949,120]
[406556056,1771939849998,-591.67,0.00040949,120]
[406556057,1771939850008,-591.67,0.00040949,120]
[406556058,1771939850017,-591.71706108,0.00040949,120]
[406556059,1771939850026,-917.0,0.00040949,120]
[406556060,1771939850035,-917.0,0.00040949,120]
[406556061,1771939850045,-917.0,0.00040949,120]
[406556062,1771939850054,-917.0,0.00040949,120]
[406556063,1771939850063,-917.17986232,0.00040949,120]
[406556064,1771939850073,-506.35812357,0.00040949,120]
[406556065,1771939850082,-657.39,0.00040949,2]
[406556066,1771939850091,-657.39,0.00040949,2]
[406556067,1771939850100,-657.39,0.00040949,2]
[406556068,1771939850108,-657.39,0.00040949,2]
[406556069,1771939850117,-657.4566601,0.00040949,2]
[406556070,1771939850126,-1423.69,0.00040949,120]
[406556071,1771939850135,-1423.69,0.00040949,120]
[406556072,1771939850143,-1423.69,0.00040949,120]
[406556073,1771939850152,-1423.69,0.00040949,120]
[406556074,1771939850162,-1423.74528268,0.00040949,120]
[406556075,1771939850172,-523.24,0.00040949,120]
[406556076,1771939850185,-523.24,0.00040949,120]
[406556077,1771939850194,-523.24,0.00040949,120]
[406556078,1771939850203,-523.24,0.00040949,120]
[406556079,1771939850212,-523.29265749,0.00040949,120]
[406556080,1771939850222,-858.26,0.00040949,120]
[406556081,1771939850230,-858.26,0.00040949,120]
[406556082,1771939850239,-858.26,0.00040949,120]
[406556083,1771939850248,-858.26,0.00040949,120]
[406556084,1771939850258,-858.47544103,0.00040949,120]
[406556085,1771939850267,-500.0,0.00040949,30]
[406556086,1771939850275,-500.0,0.00040949,30]
[406556087,1771939850284,-500.0,0.00040949,30]
[406556088,1771939850293,-339.10383034,0.00040949,30]
[406556089,1771939850301,-74029.0,0.0004095,60]
[406556090,1771939850310,-29720.24065867,0.00040977,7]
[406556091,1771939850319,-1000.44965702,0.00040977,7]
[406556092,1771939850328,-173.87087054,0.00041,7]
[406556093,1771939850337,-15438.5,0.00041,2]
[406556094,1771939850347,-300.0,0.00041039,2]
[406556095,1771939850356,-493.65842661,0.00041039,2]
[406556096,1771939850365,-301.55927827,0.00041039,2]
[406556097,1771939850374,-301.55927827,0.00041039,2]
[406556098,1771939850383,-301.55927827,0.00041039,2]
[406556099,1771939850392,-301.55927827,0.00041039,2]
[406556100,1771939850401,-5803.1,0.00041096,120]
[406556101,1771939850410,-260.32,0.00041096,120]
[406556102,1771939850419,-173.87087054,0.000412,30]
[406556103,1771939850428,-165.44,0.000412,14]
[406556104,1771939850437,-154.0,0.000413,120]
[406556105,1771939850446,-500.0,0.00041305,67]
[406556106,1771939850455,-994.88023564,0.00041471,30]
[406556107,1771939850464,-3398.05411268,0.000415,120]
[406556108,1771939850473,-151.0,0.00041579,3]
[406556109,1771939850483,-1547.127,0.00041803,2]
[406556110,1771939850492,-200.0,0.00041971,120]
[406556111,1771939850501,-150.0,0.00042173,120]
[406556112,1771939850510,-173.87087054,0.000422,7]
[406556113,1771939850519,-74029.0,0.000423,60]
[406556114,1771939850528,-173.87087054,0.000424,30]
[406556115,1771939850537,-844.7,0.00042546,120]
[406556116,1771939850546,-527.94,0.00042546,30]
[406556117,1771939850555,-154.0,0.000426,120]
[406556118,1771939850565,-160.0,0.00042716,120]
[406556119,1771939850574,-161.0,0.00042716,120]
[406556120,1771939850583,-165.44,0.000428,14]
[406556121,1771939850592,-294.68215807,0.0004284,60]
[406556122,1771939850601,-19920.62623976,0.00043,2]
[406556123,1771939850609,-2000.0,0.00043,120]
[406556124,1771939850619,-289.36431614,0.00043059,60]
[406556125,1771939850628,-200.0,0.00043068,120]
[406556126,1771939850637,-152.0,0.00043132,8]
[406556127,1771939850646,-1613.931096,0.0004328,2]
[406556128,1771939850656,-289.36431614,0.00043333,60]
[406556129,1771939850665,-4697.42439603,0.00043562,28]
[406556130,1771939850675,-74029.0,0.0004365,60]
[406556131,1771939850684,-241.13693012,0.00043662,60]
[406556132,1771939850693,-154.36657739,0.0004376,2]
[406556133,1771939850702,-2000.0,0.000438,2]
[406556134,1771939850712,-156.34,0.00043836,120]
[406556135,1771939850721,-500.0,0.00043943,60]
[406556136,1771939850730,-7602.28258293,0.00044,28]
[406556137,1771939850739,-154.0,0.00044,120]
[406556138,1771939850748,-165.44,0.00044,14]
[406556139,1771939850758,-175.87587825,0.00044067,2]
[406556140,1771939850767,-2858.18490911,0.00044181,2]
[406556141,1771939850776,-464.587,0.00044248,2]
[406556142,1771939850785,-150.0,0.00044281,120]
[406556143,1771939850794,-787.713897,0.00044368,28]
[406556144,1771939850803,-787.713897,0.00044368,28]
[406556145,1771939850812,-787.713897,0.00044368,28]
[406556146,1771939850821,-787.713897,0.00044368,28]
[406556147,1771939850830,-25000.0,0.00044368,15]
[406556148,1771939850839,-25000.0,0.00044377,15]
[406556149,1771939850847,-25000.0,0.00044377,15]
[406556150,1771939850857,-19044.84189385,0.00044377,15]
[406556151,1771939850866,-25000.0,0.00044383,15]
[406556152,1771939850875,-57859.62775656,0.0004444,120]
[406556153,1771939850884,-800.0,0.00044537,16]
[406556154,1771939850892,-800.0,0.00044537,16]
[406556155,1771939850901,-800.0,0.00044537,16]
[406556156,1771939850911,-800.0,0.00044537,16]
[406556157,1771939850919,-800.0,0.00044537,16]
[406556158,1771939850929,-800.0,0.00044537,16]
[406556159,1771939850938,-800.0,0.00044537,16]
[406556160,1771939850947,-800.0,0.00044537,16]
[406556161,1771939850956,-792.16960129,0.00044537,32]
[406556162,1771939850965,-321.81300984,0.00044602,120]
[406556163,1771939850975,-257.5043,0.00044636,2]
[406556164,1771939850984,-150.0,0.00044747,2]
[406556165,1771939850993,-3772.47,0.00044932,120]
[406556166,1771939851002,-4038.23362235,0.00045,120]
[406556167,1771939851012,-5603.22694015,0.00045,120]
[406556168,1771939851021,-230.40640533,0.00045,20]
[406556169,1771939851030,-1842.208,0.00045,2]
[406556170,1771939851039,-240.74,0.00045,120]
[406556171,1771939851049,-74029.0,0.00045,60]
[406556172,1771939851058,-554.0,0.00045,30]
[406556173,1771939851067,-150.0,0.00045056,30]
[406556174,1771939851076,-500.24398193,0.00045056,30]
[406556175,1771939851085,-150.0,0.00045056,30]
[406556176,1771939851094,-3161.20814662,0.00045056,30]
[406556177,1771939851103,-150.0,0.00045056,30]
[406556178,1771939851113,-198.20235507,0.00045056,30]
[406556179,1771939851123,-150.0,0.00045068,120]
[406556180,1771939851132,-150.0,0.00045068,120]
[406556181,1771939851141,-150.0,0.00045068,120]
[406556182,1771939851151,-277.65171186,0.00045068,120]
[406556183,1771939851160,-150.0,0.00045068,120]
[406556184,1771939851170,-2705.0,0.00045068,2]
[406556185,1771939851183,-2705.0,0.00045068,2]
[406556186,1771939851192,-178.51167837,0.00045068,120]
[406556187,1771939851202,-2705.0,0.00045068,2]
[406556188,1771939851212,-2705.0,0.00045068,2]
[406556189,1771939851226,-2705.0,0.00045068,2]
[406556190,1771939851236,-284.49243142,0.00045068,120]
[406556191,1771939851248,-155.51282354,0.00045068,120]
[406556192,1771939851258,-2705.0,0.00045068,2]
[406556193,1771939851267,-2705.0,0.00045068,2]
[406556194,1771939851277,-2705.0,0.00045068,2]
[406556195,1771939851287,-500.0,0.00045068,120]
[406556196,1771939851297,-2705.0,0.00045068,2]
[406556197,1771939851306,-500.0,0.00045068,120]
[406556198,1771939851316,-2705.0,0.00045068,2]
[406556199,1771939851325,-2705.0,0.00045068,2]
[406556200,1771939851335,-500.0,0.00045068,120]
[406556201,1771939851344,-2705.0,0.00045068,2]
[406556202,1771939851355,-500.0,0.00045068,120]
[406556203,1771939851364,-2705.0,0.00045068,2]
[406556204,1771939851375,-500.0,0.00045068,120]
[406556205,1771939851384,-2705.0,0.00045068,2]
[406556206,1771939851394,-648.05114672,0.00045068,120]
[406556207,1771939851404,-2705.0,0.00045068,2]
[406556208,1771939851414,-2705.0,0.00045068,2]
[406556209,1771939851423,-2705.0,0.00045068,2]
[406556210,1771939851433,-2705.0,0.00045068,2]
[406556211,1771939851443,-2705.0,0.00045068,2]
[406556212,1771939851452,-2705.0,0.00045068,2]
[406556213,1771939851461,-2705.0,0.00045068,2]
[406556214,1771939851470,-2705.0,0.00045068,2]
[406556215,1771939851479,-2705.0,0.00045068,2]
[406556216,1771939851488,-2722.15498182,0.00045068,2]
[406556217,1771939851498,-150.0,0.00045068,60]
[406556218,1771939851507,-150.0,0.00045068,60]
[406556219,1771939851516,-240.15036897,0.00045068,60]
[406556220,1771939851525,-253.43383125,0.00045068,60]
[406556221,1771939851535,-500.0,0.00045068,120]
[406556222,1771939851544,-500.0,0.00045068,120]
[406556223,1771939851554,-507.10875232,0.00045068,120]
[406556224,1771939851563,-150.0,0.00045068,120]
[406556225,1771939851573,-150.0,0.00045068,120]
[406556226,1771939851582,-150.0,0.00045068,120]
[406556227,1771939851591,-192.63004839,0.00045068,120]
[406556228,1771939851601,-155.52794573,0.00045108,120]
[406556229,1771939851612,-702.38,0.000452,30]
[406556230,1771939851621,-150.0,0.00045205,120]
[406556231,1771939851632,-432.27,0.00045205,120]
[406556232,1771939851641,-150.0,0.00045205,120]
[406556233,1771939851651,-500.0,0.00045205,2]
[406556234,1771939851662,-505.51103944,0.00045205,2]
[406556235,1771939851672,-500.0,0.00045205,2]
[406556236,1771939851682,-500.0,0.00045205,2]
[406556237,1771939851691,-500.0,0.00045205,2]
[406556238,1771939851702,-500.0,0.00045205,2]
[406556239,1771939851711,-500.0,0.00045205,2]
[406556240,1771939851721,-500.0,0.00045205,2]
[406556241,1771939851731,-500.0,0.00045205,2]
[406556242,1771939851740,-500.0,0.00045205,2]
[406556243,1771939851749,-500.0,0.00045205,2]
[406556244,1771939851759,-500.0,0.00045205,2]
[406556245,1771939851768,-500.0,0.00045205,2]
[406556246,1771939851778,-150.76821537,0.0004526,2]
[406556247,1771939851788,-154.0,0.000453,120]
[406556248,1771939851798,-464.587,0.00045354,2]
[406556249,1771939851807,-993.60630424,0.000454,120]
[406556250,1771939851817,-500000.0,0.000454,30]
[406556251,1771939851826,-270.73,0.000454,14]
[406556252,1771939851835,-151.0,0.000454,120]
[406556253,1771939851845,-11268.33036727,0.00045443,2]
[406556254,1771939851855,-152.0,0.00045469,9]
[406556255,1771939851865,-600.0,0.00045479,120]
[406556256,1771939851875,-50000.0,0.000455,30]
[406556257,1771939851885,-2590.74647568,0.00045502,2]
[406556258,1771939851896,-50000.0,0.0004551,30]
[406556259,1771939851906,-787.713897,0.0004551,28]
[406556260,1771939851916,-787.713897,0.0004551,28]
[406556261,1771939851926,-787.713897,0.0004551,28]
[406556262,1771939851936,-787.713897,0.0004551,28]
[406556263,1771939851946,-50000.0,0.00045512,30]
[406556264,1771939851956,-50000.0,0.00045513,30]
[406556265,1771939851966,-50000.0,0.00045515,30]
[406556266,1771939851975,-50000.0,0.00045516,30]
[406556267,1771939851985,-50000.0,0.00045517,30]
[406556268,1771939851994,-50000.0,0.00045518,30]
[406556269,1771939852005,-50000.0,0.00045519,30]
[406556270,1771939852014,-50000.0,0.0004552,30]
[406556271,1771939852023,-150.0,0.00045534,30]
[406556272,1771939852032,-150.0,0.00045534,30]
[406556273,1771939852042,-150.0,0.00045534,30]
[406556274,1771939852051,-150.0,0.00045534,30]
[406556275,1771939852061,-150.0,0.00045534,30]
[406556276,1771939852070,-150.0,0.00045534,30]
[406556277,1771939852080,-150.0,0.00045534,30]
[406556278,1771939852091,-150.91920927,0.00045534,30]
[406556279,1771939852100,-150.0,0.00045534,30]
[406556280,1771939852110,-150.0,0.00045534,30]
[406556281,1771939852119,-150.78067952,0.00045534,30]
[406556282,1771939852128,-150.0,0.00045534,30]
[406556283,1771939852138,-150.0,0.00045534,30]
[406556284,1771939852151,-300.0,0.00045541,30]
[406556285,1771939852160,-169.41,0.00045543,120]
[406556286,1771939852170,-151.0,0.00045543,120]
[406556287,1771939852184,-151.0,0.00045543,120]
[406556288,1771939852193,-787.713897,0.00045543,28]
[406556289,1771939852202,-787.713897,0.00045543,28]
[406556290,1771939852211,-787.713897,0.00045543,28]
[406556291,1771939852222,-787.713895,0.00045543,28]
[406556292,1771939852231,-300.0,0.00045546,30]
[406556293,1771939852241,-666.0,0.00045546,30]
[406556294,1771939852251,-200.0,0.0004558,10]
[406556295,1771939852260,-541.38186834,0.00045586,60]
[406556296,1771939852269,-150.0,0.00045586,2]
[406556297,1771939852277,-183.0,0.00045587,3]
[406556298,1771939852286,-151.0,0.00045587,3]
[406556299,1771939852295,-200.5668252,0.00045587,120]
[406556300,1771939852304,-176.69105744,0.000456,30]
[406556301,1771939852314,-1581.11,0.000456,60]
[406556302,1771939852323,-165.12,0.000456,30]
[406556303,1771939852332,-578.99485946,0.000456,2]
[406556304,1771939852341,-736.33675425,0.000456,2]
[406556305,1771939852350,-2426347.19606517,0.00045602,10]
[406556306,1771939852553,-506.23472364,0.00010789,2]
[406556307,1771939852562,-473.39067052,0.00035803,2]
[406556308,1771939852950,-296.09,0.00013894,2]
[406556309,1771939852959,-296.09,0.00022267,2]
[406556310,1771939852968,-566.60932948,0.00035803,2]
[406556311,1771939852977,-3637.92777074,0.00045602,10]
[406556312,1771939852992,-296.09,0.00027535,2]
[406556313,1771939853001,-226.51337356,0.00045602,10]
[406556314,1771939868323,5000.01,7.945e-05,2]
[406556315,1771939873795,5000.0,9.567e-05,2]
[406556316,1771939873819,1773.717,9.567e-05,2]
[406556317,1771939881160,183.0566,9.567e-05,2]
[406556318,1771939905906,1000.0,9.567e-05,2]
[406556319,1771939911998,4132.3953,9.567e-05,2]
[406556320,1771939918204,2910.8411,9.567e-05,2]
[406556321,1771939918224,10000.01,9.567e-05,2]
[406556322,1771939918247,10000.01,9.567e-05,2]
[406556323,1771939918270,10000.01,9.567e-05,2]
[406556324,1771939947325,9561.838499,9.518e-05,2]
[406556333,1771940365895,-1200.0,9.566e-05,2]
[406556335,1771940485697,438.171501,9.466e-05,2]
[406556336,1771940485719,61.828499,9.466e-05,2]
[406556337,1771940514872,238.46,9.5e-05,2]
[406556338,1771940647418,500.0,9.466e-05,2]
[406556343,1771940806382,500.0,9.466e-05,2]
[406556348,1771940952744,-229.0,9.567e-05,2]
[406556375,1771941032594,-250.0,9.567e-05,2]
[406556377,1771941032605,-1000.0,9.567e-05,2]
[406556378,1771941032618,-250.0,9.805e-05,2]
[406556379,1771941032631,-183.0,0.0001,2]
[406556380,1771941032641,-183.0,0.00010235,2]
[406556381,1771941032651,-250.0,0.00010524,2]
[406556382,1771941032662,-3033.3889246,0.00010647,2]
[406556383,1771941032672,-346.19988543,0.0001069,2]
[406556384,1771941032681,-1200.0,0.00010699,2]
[406556385,1771941032691,-125157.87462645,0.000107,2]
[406556386,1771941032702,-626.26,0.000107,2]
[406556387,1771941032714,-45701.86555306,0.000107,2]
[406556388,1771941032725,-5000.0,0.000107,2]
[406556389,1771941032737,-5442.8,0.000107,2]
[406556390,1771941032785,-666.65,0.000107,2]
[406556391,1771941032797,-355.00000001,0.000107,2]
[406556392,1771941032809,-75618.49753821,0.000107,2]
[406556393,1771941032845,-543.6,0.000107,2]
[406556402,1771941038282,-6187.95,0.000107,2]
[406556403,1771941038294,-3234699.50228227,0.000107,2]
[406556404,1771941038304,-184.60272737,0.00010747,2]
[406556405,1771941038314,-11566.2289354,0.0001079,2]
[406556406,1771941038324,-150.0,0.00010799,2]
[406556407,1771941038333,-699.99,0.000108,2]
[406556408,1771941038343,-600.0,0.000108,2]
[406556409,1771941038353,-500.0,0.000108,2]
[406556410,1771941038363,-600.0,0.000108,2]
[406556411,1771941038373,-500.0,0.000108,2]
[406556412,1771941038382,-500.0,0.000108,2]
[406556413,1771941038392,-653.71723476,0.000108,2]
[406556414,1771941038404,-500.0,0.000108,2]
[406556415,1771941038414,-500.0,0.000108,2]
[406556416,1771941038425,-500.0,0.000108,2]
[406556417,1771941038434,-500.0,0.000108,2]
[406556418,1771941038444,-800.0,0.000108,2]
[406556419,1771941038454,-9999.99,0.000108,2]
[406556420,1771941038464,-999.99,0.000108,2]
[406556421,1771941038473,-4999.99,0.000108,2]
[406556422,1771941038482,-150.99,0.000108,2]
[406556423,1771941038491,-9999.99,0.000108,2]
[406556424,1771941038501,-306.28,0.000108,2]
[406556425,1771941038512,-9999.99,0.000108,2]
[406556426,1771941038522,-299.99,0.000108,2]
[406556427,1771941038533,-150.99,0.000108,2]
[406556428,1771941038542,-9999.99,0.000108,2]
[406556429,1771941038552,-1185.85,0.000108,2]
[406556430,1771941038562,-499.99,0.000108,2]
[406556431,1771941038573,-9999.99,0.000108,2]
[406556432,1771941038583,-3838.62,0.000108,2]
[406556433,1771941038598,-500.0,0.00010873,2]
[406556434,1771941038610,-500.0,0.00010873,2]
[406556435,1771941038621,-500.0,0.00010873,2]
[406556437,1771941038632,-500.0,0.00010873,2]
[406556439,1771941038642,-527.71923747,0.00010873,2]
[406556440,1771941038652,-500.0,0.00010873,2]
[406556441,1771941038663,-220.248153,0.00010996,2]
[406556442,1771941038675,-493.6685762,0.00011224,2]
[406556443,1771941038687,-982.12,0.00011362,2]
[406556445,1771941038696,-1026.0,0.00011387,2]
[406556446,1771941038706,-846.0,0.00011409,2]
[406556447,1771941038717,-1000.0,0.00011421,2]
[406556448,1771941038727,-1000.0,0.00011421,2]
[406556449,1771941038738,-550.01264972,0.00011421,2]
[406556450,1771941038748,-1000.0,0.00011421,2]
[406556452,1771941038757,-1000.0,0.00011421,2]
[406556454,1771941038767,-1680.0,0.00011769,2]
[406556455,1771941038777,-1852.42,0.00011789,2]
[406556457,1771941038787,-255.0,0.00011836,2]
[406556459,1771941038797,-346.19988543,0.00011958,2]
[406556461,1771941038806,-22047.9235,0.00011967,2]
[406556462,1771941038817,-1500.0,0.00011968,2]
[406556463,1771941038828,-503.87713345,0.00011968,2]
[406556464,1771941038839,-1500.0,0.00011968,2]
[406556465,1771941038850,-1500.0,0.00011968,2]
[406556466,1771941038860,-10156.31,0.00012067,2]
[406556467,1771941038870,-484.10314846,0.00012415,2]
[406556468,1771941038880,-299.10049378,0.00012415,2]
[406556469,1771941038891,-500.0,0.00012415,2]
[406556470,1771941038900,-365.1598508,0.00012416,2]
[406556471,1771941038909,-5567.09001937,0.00012416,2]
[406556472,1771941038920,-271.35929696,0.00012416,2]
[406556473,1771941038930,-16795.22870486,0.00012416,2]
[406556474,1771941038940,-921.39258684,0.00012416,2]
[406556475,1771941038950,-8692.42913998,0.00012416,2]
[406556476,1771941038960,-4130.95524384,0.00012416,2]
[406556477,1771941038970,-8282.43150572,0.00012416,2]
[406556478,1771941038980,-4352.77,0.00012516,2]
[406556479,1771941038990,-874.73958587,0.00012516,2]
[406556480,1771941039000,-2000.0,0.00012516,2]
[406556481,1771941039010,-2000.0,0.00012516,2]
[406556482,1771941039020,-166.66,0.00012585,2]
[406556483,1771941039031,-250.0,0.0001264,2]
[406556484,1771941039041,-982.12,0.00012782,2]
[406556485,1771941039052,-2899.8263,0.00012801,2]
[406556486,1771941039061,-2500.0,0.00012801,2]
[406556487,1771941039071,-341435.3857,0.00012901,2]
[406556488,1771941039082,-2351.0,0.00012946,2]
[406556489,1771941039092,-433.0,0.0001297,2]
[406556490,1771941039102,-166.66,0.00013001,2]
[406556491,1771941039111,-10000.0,0.00013001,2]
[406556492,1771941039123,-2500.0,0.00013064,2]
[406556493,1771941039133,-1877.20909449,0.00013064,2]
[406556494,1771941039144,-500.0,0.00013073,2]
[406556495,1771941039154,-500.0,0.00013101,2]
[406556496,1771941039163,-500.0,0.00013101,2]
[406556497,1771941039177,-500.0,0.00013101,2]
[406556498,1771941039188,-500.0,0.00013101,2]
[406556499,1771941039198,-500.0,0.00013101,2]
[406556500,1771941039208,-500.0,0.00013101,2]
[406556501,1771941039218,-500.0,0.00013101,2]
[406556502,1771941039228,-500.0,0.00013101,2]
[406556503,1771941039238,-500.0,0.00013101,2]
[406556504,1771941039248,-500.0,0.00013101,2]